[Event "Titled Tuesday Blitz August 09 Early 2022"]
[White "Leschinsky, Gary"]
[Black "Isanzhulov, Arystan"]
[WhiteFideId "30951321"]
[BlackFideId "13711644"]
[WhiteElo "1809"]
[BlackElo "2307"]
[Result "1-0"]
[Round "01"]
[TimeControl "180+1"]
[Date "2022.08.09"]
[WhiteClock "0:00:14"]
[BlackClock "0:01:11"]

1. d4 {[%clk 0:03:00]}  Nf6 {[%clk 0:02:57]} 2. c4 {[%clk 0:02:56]}  e6 {[%clk 0:02:56]} 3. Nc3 {[%clk 0:02:53]}  d5 {[%clk 0:02:51]} 4. cxd5 {[%clk 0:02:52]}  exd5 {[%clk 0:02:50]} 5. Bg5 {[%clk 0:02:47]}  Nbd7 {[%clk 0:02:48]} 6. e3 {[%clk 0:02:45]}  h6 {[%clk 0:02:43]} 7. Bh4 {[%clk 0:02:43]}  g5 {[%clk 0:02:43]} 8. Bg3 {[%clk 0:02:43]}  Bb4 {[%clk 0:02:43]} 9. Bd3 {[%clk 0:02:38]}  c5 {[%clk 0:02:32]} 10. Ne2 {[%clk 0:01:59]}  c4 {[%clk 0:02:31]} 11. Bc2 {[%clk 0:01:59]}  h5 {[%clk 0:02:22]} 12. h4 {[%clk 0:01:58]}  Ng4 {[%clk 0:02:22]} 13. hxg5 {[%clk 0:01:55]}  Qxg5 {[%clk 0:02:20]} 14. Bh4 {[%clk 0:01:41]}  Qh6 {[%clk 0:02:13]} 15. a3 {[%clk 0:01:39]}  Ba5 {[%clk 0:02:11]} 16. Nf4 {[%clk 0:01:28]}  Nb6 {[%clk 0:02:06]} 17. Bg3 {[%clk 0:01:20]}  Nf6 {[%clk 0:02:03]} 18. Qd2 {[%clk 0:00:56]}  Bd7 {[%clk 0:01:56]} 19. Bh4 {[%clk 0:00:53]}  O-O-O {[%clk 0:01:49]} 20. O-O-O {[%clk 0:00:44]}  Kb8 {[%clk 0:01:46]} 21. Kb1 {[%clk 0:00:43]}  Ba4 {[%clk 0:01:42]} 22. f3 {[%clk 0:00:24]}  Ne8 {[%clk 0:01:34]} 23. Bxd8 {[%clk 0:00:23]}  Nc7 {[%clk 0:01:27]} 24. Bxc7+ {[%clk 0:00:22]}  Kxc7 {[%clk 0:01:28]} 25. Ncxd5+ {[%clk 0:00:18]}  Nxd5 {[%clk 0:01:26]} 26. Qxa5+ {[%clk 0:00:18]}  Kb8 {[%clk 0:01:27]} 27. Nxd5 {[%clk 0:00:18]}  Bxc2+ {[%clk 0:01:27]} 28. Kxc2 {[%clk 0:00:19]}  Qg6+ {[%clk 0:01:27]} 29. Kc1 {[%clk 0:00:19]}  b6 {[%clk 0:01:27]} 30. Qd2 {[%clk 0:00:19]}  Qg5 {[%clk 0:01:27]} 31. Nf4 {[%clk 0:00:19]}  h4 {[%clk 0:01:27]} 32. Rh3 {[%clk 0:00:19]}  Rc8 {[%clk 0:01:26]} 33. Kb1 {[%clk 0:00:18]}  Qb5 {[%clk 0:01:23]} 34. Qc3 {[%clk 0:00:18]}  Qa4 {[%clk 0:01:23]} 35. Rdh1 {[%clk 0:00:18]}  Kb7 {[%clk 0:01:23]} 36. Nd5 {[%clk 0:00:18]}  Qb5 {[%clk 0:01:22]} 37. Nb4 {[%clk 0:00:17]}  a5 {[%clk 0:01:22]} 38. Nc2 {[%clk 0:00:18]}  f5 {[%clk 0:01:22]} 39. Rxh4 {[%clk 0:00:19]}  Ka6 {[%clk 0:01:22]} 40. Rh7 {[%clk 0:00:19]}  Rg8 {[%clk 0:01:23]} 41. R1h2 {[%clk 0:00:19]}  Qa4 {[%clk 0:01:22]} 42. Rc7 {[%clk 0:00:17]}  Kb5 {[%clk 0:01:18]} 43. Rh5 {[%clk 0:00:16]}  Rf8 {[%clk 0:01:16]} 44. d5 {[%clk 0:00:15]}  Ka6 {[%clk 0:01:14]} 45. Rh6 {[%clk 0:00:15]}  Rg8 {[%clk 0:01:10]} 46. Rcc6 {[%clk 0:00:15]}  Rxg2 {[%clk 0:01:09]} 47. Rxb6+ {[%clk 0:00:15]}  Ka7 {[%clk 0:01:10]} 48. Ra6+ {[%clk 0:00:15]}  Kb7 {[%clk 0:01:10]} 49. Rhb6+ {[%clk 0:00:14]}  Kc7 {[%clk 0:01:11]} 50. Qe5+ {[%clk 0:00:14]}  Kc8 {[%clk 0:01:11]} 51. Ra8+ {[%clk 0:00:13]}  Kd7 {[%clk 0:01:11]} 52. Qe6+ {[%clk 0:00:14]}  Kc7 {[%clk 0:01:11]} 53. Qd6# {[%clk 0:00:14]} 1-0


[Site "https://www.chess.com"]

[Event "Titled Tuesday Blitz August 09 Early 2022"]
[White "Luo, Terry"]
[Black "Mikhnenko, Alexander"]
[WhiteFideId "30931045"]
[BlackFideId "34143014"]
[WhiteElo "2024"]
[BlackElo "2134"]
[Result "0-1"]
[Round "01"]
[TimeControl "180+1"]
[Date "2022.08.09"]
[WhiteClock "0:00:54"]
[BlackClock "0:01:27"]

1. d4 {[%clk 0:02:57]}  d5 {[%clk 0:02:59]} 2. Nc3 {[%clk 0:02:57]}  c6 {[%clk 0:02:57]} 3. Bf4 {[%clk 0:02:57]}  Bf5 {[%clk 0:02:57]} 4. f3 {[%clk 0:02:57]}  e6 {[%clk 0:02:57]} 5. g4 {[%clk 0:02:56]}  Bg6 {[%clk 0:02:56]} 6. h4 {[%clk 0:02:56]}  h5 {[%clk 0:02:56]} 7. g5 {[%clk 0:02:55]}  Bb4 {[%clk 0:02:54]} 8. e3 {[%clk 0:02:53]}  Ne7 {[%clk 0:02:54]} 9. Bd3 {[%clk 0:02:53]}  Nf5 {[%clk 0:02:53]} 10. Ne2 {[%clk 0:02:51]}  Nd7 {[%clk 0:02:50]} 11. a3 {[%clk 0:02:51]}  Ba5 {[%clk 0:02:49]} 12. Qd2 {[%clk 0:02:38]}  Bc7 {[%clk 0:02:47]} 13. O-O-O {[%clk 0:02:37]}  O-O {[%clk 0:02:40]} 14. Bxc7 {[%clk 0:02:36]}  Qxc7 {[%clk 0:02:40]} 15. Nf4 {[%clk 0:02:37]}  e5 {[%clk 0:02:29]} 16. dxe5 {[%clk 0:01:35]}  Nxe5 {[%clk 0:02:16]} 17. Rdf1 {[%clk 0:01:32]}  Nxd3+ {[%clk 0:02:14]} 18. Qxd3 {[%clk 0:01:22]}  Rae8 {[%clk 0:02:06]} 19. Re1 {[%clk 0:01:14]}  Rxe3 {[%clk 0:01:53]} 20. Rxe3 {[%clk 0:00:57]}  Qxf4 {[%clk 0:01:51]} 21. Nd1 {[%clk 0:00:58]}  Re8 {[%clk 0:01:30]} 22. Re1 {[%clk 0:00:56]}  Nxe3 {[%clk 0:01:28]} 23. Rxe3 {[%clk 0:00:54]}  Bxd3 {[%clk 0:01:27]} 0-1


[Site "https://www.chess.com"]

[Event "Titled Tuesday Blitz August 09 Early 2022"]
[White "Maiorov, Nikita"]
[Black "parintele_chess"]
[WhiteFideId "13501720"]
[WhiteElo "2409"]
[BlackElo "2217"]
[Result "1-0"]
[Round "01"]
[TimeControl "180+1"]
[Date "2022.08.09"]
[WhiteClock "0:00:55"]
[BlackClock "0:00:02"]

1. d4 {[%clk 0:02:58]}  d5 {[%clk 0:02:59]} 2. c4 {[%clk 0:02:54]}  e6 {[%clk 0:02:59]} 3. Nc3 {[%clk 0:02:53]}  a6 {[%clk 0:03:00]} 4. cxd5 {[%clk 0:02:50]}  exd5 {[%clk 0:03:01]} 5. Nf3 {[%clk 0:02:50]}  c6 {[%clk 0:02:59]} 6. Bg5 {[%clk 0:02:40]}  Be7 {[%clk 0:02:58]} 7. Bf4 {[%clk 0:02:35]}  Nf6 {[%clk 0:02:51]} 8. e3 {[%clk 0:02:34]}  Be6 {[%clk 0:02:50]} 9. Bd3 {[%clk 0:02:33]}  h6 {[%clk 0:02:44]} 10. h3 {[%clk 0:02:33]}  Nbd7 {[%clk 0:02:43]} 11. Bh2 {[%clk 0:02:30]}  O-O {[%clk 0:02:41]} 12. O-O {[%clk 0:02:29]}  b6 {[%clk 0:02:30]} 13. Ne5 {[%clk 0:02:00]}  Nxe5 {[%clk 0:02:26]} 14. dxe5 {[%clk 0:01:57]}  Nd7 {[%clk 0:02:21]} 15. Bc2 {[%clk 0:01:55]}  f6 {[%clk 0:02:11]} 16. exf6 {[%clk 0:01:36]}  Nxf6 {[%clk 0:02:06]} 17. Ne2 {[%clk 0:01:36]}  Bd6 {[%clk 0:02:04]} 18. Nf4 {[%clk 0:01:35]}  Bf7 {[%clk 0:01:47]} 19. Rc1 {[%clk 0:01:34]}  Be5 {[%clk 0:01:29]} 20. Bb1 {[%clk 0:01:32]}  c5 {[%clk 0:01:24]} 21. Qc2 {[%clk 0:01:25]}  g5 {[%clk 0:00:50]} 22. Ne2 {[%clk 0:01:17]}  Bxh2+ {[%clk 0:00:48]} 23. Kxh2 {[%clk 0:01:17]}  Qd6+ {[%clk 0:00:47]} 24. Kg1 {[%clk 0:01:16]}  Kg7 {[%clk 0:00:37]} 25. Ng3 {[%clk 0:01:15]}  Kh8 {[%clk 0:00:07]} 26. Nf5 {[%clk 0:01:13]}  Qe5 {[%clk 0:00:07]} 27. Nxh6 {[%clk 0:01:13]}  Ne4 {[%clk 0:00:04]} 28. Ng4 {[%clk 0:01:09]}  Qg7 {[%clk 0:00:03]} 29. f3 {[%clk 0:01:08]}  Bg6 {[%clk 0:00:03]} 30. fxe4 {[%clk 0:01:07]}  Bxe4 {[%clk 0:00:04]} 31. Qd2 {[%clk 0:01:06]}  Rxf1+ {[%clk 0:00:04]} 32. Rxf1 {[%clk 0:01:05]}  Rf8 {[%clk 0:00:04]} 33. Rxf8+ {[%clk 0:01:04]}  Qxf8 {[%clk 0:00:05]} 34. Bxe4 {[%clk 0:01:03]}  dxe4 {[%clk 0:00:06]} 35. Qd5 {[%clk 0:01:02]}  Qe7 {[%clk 0:00:04]} 36. Ne5 {[%clk 0:00:59]}  Kg7 {[%clk 0:00:03]} 37. Qxe4 {[%clk 0:00:58]}  Qf6 {[%clk 0:00:03]} 38. Qb7+ {[%clk 0:00:56]}  Kh6 {[%clk 0:00:02]} 39. Ng4+ {[%clk 0:00:55]} 1-0


[Site "https://www.chess.com"]

[Event "Titled Tuesday Blitz August 09 Early 2022"]
[White "Martin Duque, Jesus"]
[Black "Le, Tuan Minh"]
[WhiteFideId "2208954"]
[BlackFideId "12401153"]
[WhiteElo "2258"]
[BlackElo "2530"]
[Result "0-1"]
[Round "01"]
[TimeControl "180+1"]
[Date "2022.08.09"]
[WhiteClock "0:01:12"]
[BlackClock "0:00:55"]

1. Nf3 {[%clk 0:03:00]}  d5 {[%clk 0:02:59]} 2. b3 {[%clk 0:03:00]}  Nf6 {[%clk 0:02:43]} 3. Bb2 {[%clk 0:02:57]}  Bf5 {[%clk 0:02:42]} 4. g3 {[%clk 0:02:56]}  e6 {[%clk 0:02:41]} 5. Bg2 {[%clk 0:02:57]}  h6 {[%clk 0:02:41]} 6. d3 {[%clk 0:02:57]}  Be7 {[%clk 0:02:41]} 7. Nbd2 {[%clk 0:02:58]}  O-O {[%clk 0:02:42]} 8. O-O {[%clk 0:02:58]}  a5 {[%clk 0:02:42]} 9. a4 {[%clk 0:02:58]}  Na6 {[%clk 0:02:42]} 10. Re1 {[%clk 0:02:58]}  Bh7 {[%clk 0:02:42]} 11. e4 {[%clk 0:02:58]}  Nb4 {[%clk 0:02:43]} 12. Re2 {[%clk 0:02:56]}  c6 {[%clk 0:02:35]} 13. h4 {[%clk 0:02:55]}  Qc7 {[%clk 0:02:23]} 14. e5 {[%clk 0:02:52]}  Nd7 {[%clk 0:02:20]} 15. h5 {[%clk 0:02:50]}  Rae8 {[%clk 0:02:18]} 16. Nd4 {[%clk 0:02:40]}  Nxe5 {[%clk 0:01:55]} 17. Nxe6 {[%clk 0:02:40]}  fxe6 {[%clk 0:01:54]} 18. Bxe5 {[%clk 0:02:40]}  Bd6 {[%clk 0:01:55]} 19. Nf3 {[%clk 0:02:35]}  Rf5 {[%clk 0:01:44]} 20. Bxd6 {[%clk 0:02:24]}  Qxd6 {[%clk 0:01:45]} 21. Nd4 {[%clk 0:02:18]}  Rf6 {[%clk 0:01:40]} 22. f4 {[%clk 0:02:15]}  Qc5 {[%clk 0:01:38]} 23. c3 {[%clk 0:02:05]}  Qxc3 {[%clk 0:01:35]} 24. Nf3 {[%clk 0:02:03]}  Bxd3 {[%clk 0:01:33]} 25. Re3 {[%clk 0:02:02]}  Qc5 {[%clk 0:01:33]} 26. Kf2 {[%clk 0:01:48]}  e5 {[%clk 0:01:25]} 27. Rc1 {[%clk 0:01:43]}  Qb6 {[%clk 0:01:24]} 28. Qd2 {[%clk 0:01:34]}  exf4 {[%clk 0:01:21]} 29. gxf4 {[%clk 0:01:33]}  Rxf4 {[%clk 0:01:18]} 30. Re1 {[%clk 0:01:33]}  Rfe4 {[%clk 0:01:09]} 31. Nh4 {[%clk 0:01:14]}  Rxh4 {[%clk 0:00:57]} 32. Kg3 {[%clk 0:01:13]}  Qc7+ {[%clk 0:00:55]} 33. Kxh4 {[%clk 0:01:13]}  Qf4+ {[%clk 0:00:54]} 34. Kh3 {[%clk 0:01:12]}  Bf5# {[%clk 0:00:55]} 0-1


[Site "https://www.chess.com"]

[Event "Titled Tuesday Blitz August 09 Early 2022"]
[White "Mathieu, Phileas"]
[Black "Piesik, Piotr"]
[WhiteFideId "36048410"]
[BlackFideId "1136194"]
[WhiteElo "2138"]
[BlackElo "2221"]
[Result "0-1"]
[Round "01"]
[TimeControl "180+1"]
[Date "2022.08.09"]
[WhiteClock "0:00:05"]
[BlackClock "0:00:38"]

1. e4 {[%clk 0:02:46]}  g6 {[%clk 0:02:59]} 2. d4 {[%clk 0:02:45]}  Bg7 {[%clk 0:02:59]} 3. Nc3 {[%clk 0:02:44]}  c6 {[%clk 0:03:00]} 4. Be3 {[%clk 0:02:35]}  d5 {[%clk 0:02:59]} 5. e5 {[%clk 0:02:33]}  Nh6 {[%clk 0:02:58]} 6. f3 {[%clk 0:02:28]}  f6 {[%clk 0:02:56]} 7. exf6 {[%clk 0:02:26]}  exf6 {[%clk 0:02:57]} 8. Bd3 {[%clk 0:02:24]}  Nf5 {[%clk 0:02:57]} 9. Bf2 {[%clk 0:02:24]}  O-O {[%clk 0:02:55]} 10. Nge2 {[%clk 0:02:24]}  Re8 {[%clk 0:02:54]} 11. Qd2 {[%clk 0:02:07]}  Bh6 {[%clk 0:02:53]} 12. f4 {[%clk 0:02:08]}  Nd6 {[%clk 0:02:47]} 13. O-O-O {[%clk 0:02:06]}  Bf5 {[%clk 0:02:46]} 14. Bxf5 {[%clk 0:02:00]}  Nxf5 {[%clk 0:02:46]} 15. Rhe1 {[%clk 0:01:53]}  Nd7 {[%clk 0:02:45]} 16. Ng1 {[%clk 0:01:34]}  Nb6 {[%clk 0:02:43]} 17. b3 {[%clk 0:01:34]}  Qd6 {[%clk 0:02:36]} 18. g3 {[%clk 0:01:27]}  a5 {[%clk 0:02:28]} 19. a4 {[%clk 0:01:26]}  Bf8 {[%clk 0:02:17]} 20. Kb1 {[%clk 0:01:25]}  Qa3 {[%clk 0:01:52]} 21. Qc1 {[%clk 0:01:16]}  Qb4 {[%clk 0:01:31]} 22. Na2 {[%clk 0:01:16]}  Qd6 {[%clk 0:01:27]} 23. g4 {[%clk 0:01:14]}  Ng7 {[%clk 0:01:25]} 24. Nf3 {[%clk 0:01:01]}  Qa3 {[%clk 0:01:19]} 25. Qxa3 {[%clk 0:00:58]}  Bxa3 {[%clk 0:01:20]} 26. Bg3 {[%clk 0:00:52]}  Nd7 {[%clk 0:01:11]} 27. Nc1 {[%clk 0:00:45]}  Bd6 {[%clk 0:01:09]} 28. Nd3 {[%clk 0:00:44]}  b5 {[%clk 0:01:08]} 29. axb5 {[%clk 0:00:40]}  cxb5 {[%clk 0:01:08]} 30. g5 {[%clk 0:00:40]}  Nf5 {[%clk 0:01:06]} 31. gxf6 {[%clk 0:00:39]}  Nxf6 {[%clk 0:01:07]} 32. Nfe5 {[%clk 0:00:33]}  Ne4 {[%clk 0:01:07]} 33. Nc5 {[%clk 0:00:17]}  Nc3+ {[%clk 0:01:05]} 34. Kb2 {[%clk 0:00:16]}  Nxd1+ {[%clk 0:01:05]} 35. Rxd1 {[%clk 0:00:17]}  Rec8 {[%clk 0:00:59]} 36. Nb7 {[%clk 0:00:08]}  Bb4 {[%clk 0:00:56]} 37. Be1 {[%clk 0:00:04]}  Bxe1 {[%clk 0:00:53]} 38. Rxe1 {[%clk 0:00:05]}  Nxd4 {[%clk 0:00:53]} 39. c3 {[%clk 0:00:04]}  Nf5 {[%clk 0:00:52]} 40. b4 {[%clk 0:00:02]}  axb4 {[%clk 0:00:51]} 41. cxb4 {[%clk 0:00:03]}  Ra4 {[%clk 0:00:43]} 42. Nd3 {[%clk 0:00:03]}  Rca8 {[%clk 0:00:40]} 43. Nbc5 {[%clk 0:00:04]}  Ra2+ {[%clk 0:00:40]} 44. Kc3 {[%clk 0:00:04]}  R8a3+ {[%clk 0:00:39]} 45. Nb3 {[%clk 0:00:05]}  d4# {[%clk 0:00:38]} 0-1


[Site "https://www.chess.com"]

[Event "Titled Tuesday Blitz August 09 Early 2022"]
[White "Matlakov, Maxim"]
[Black "Ianov, Viktor"]
[WhiteFideId "4168003"]
[BlackFideId "14102730"]
[WhiteElo "2669"]
[BlackElo "2152"]
[Result "1-0"]
[Round "01"]
[TimeControl "180+1"]
[Date "2022.08.09"]
[WhiteClock "0:00:46"]
[BlackClock "0:00:04"]

1. d4 {[%clk 0:03:00]}  d6 {[%clk 0:02:44]} 2. Nf3 {[%clk 0:03:01]}  g6 {[%clk 0:02:40]} 3. g3 {[%clk 0:03:01]}  Bg7 {[%clk 0:02:40]} 4. Bg2 {[%clk 0:03:01]}  Nf6 {[%clk 0:02:40]} 5. O-O {[%clk 0:03:01]}  O-O {[%clk 0:02:40]} 6. Nc3 {[%clk 0:03:02]}  Nbd7 {[%clk 0:02:37]} 7. e4 {[%clk 0:03:02]}  e5 {[%clk 0:02:37]} 8. Re1 {[%clk 0:03:02]}  c6 {[%clk 0:02:36]} 9. a4 {[%clk 0:03:02]}  b6 {[%clk 0:02:34]} 10. h3 {[%clk 0:03:03]}  a6 {[%clk 0:02:32]} 11. b3 {[%clk 0:03:00]}  Re8 {[%clk 0:02:30]} 12. Ba3 {[%clk 0:03:00]}  Bf8 {[%clk 0:02:30]} 13. Qd2 {[%clk 0:02:58]}  Bb7 {[%clk 0:02:29]} 14. Rad1 {[%clk 0:02:57]}  Qc7 {[%clk 0:02:29]} 15. dxe5 {[%clk 0:02:44]}  dxe5 {[%clk 0:02:28]} 16. Bd6 {[%clk 0:02:44]}  Qc8 {[%clk 0:02:24]} 17. Bxf8 {[%clk 0:02:38]}  Nxf8 {[%clk 0:02:19]} 18. Qg5 {[%clk 0:02:38]}  N6d7 {[%clk 0:02:15]} 19. Rd6 {[%clk 0:02:35]}  Ne6 {[%clk 0:02:11]} 20. Qh6 {[%clk 0:02:35]}  f6 {[%clk 0:02:03]} 21. Red1 {[%clk 0:02:32]}  Ndf8 {[%clk 0:02:03]} 22. h4 {[%clk 0:02:26]}  Qc7 {[%clk 0:02:02]} 23. h5 {[%clk 0:02:08]}  Qg7 {[%clk 0:01:58]} 24. Qe3 {[%clk 0:02:08]}  b5 {[%clk 0:01:57]} 25. Qb6 {[%clk 0:02:01]}  Re7 {[%clk 0:01:52]} 26. R1d2 {[%clk 0:01:52]}  Rae8 {[%clk 0:01:47]} 27. b4 {[%clk 0:01:50]}  Qh6 {[%clk 0:01:40]} 28. Nh4 {[%clk 0:01:41]}  Qxh5 {[%clk 0:01:37]} 29. Ne2 {[%clk 0:01:33]}  Qh6 {[%clk 0:01:30]} 30. c3 {[%clk 0:01:32]}  Nd4 {[%clk 0:01:15]} 31. Nf3 {[%clk 0:01:27]}  Nxe2+ {[%clk 0:01:03]} 32. Rxe2 {[%clk 0:01:26]}  Kg7 {[%clk 0:01:00]} 33. Red2 {[%clk 0:01:23]}  Kg8 {[%clk 0:00:49]} 34. a5 {[%clk 0:01:21]}  Rf7 {[%clk 0:00:42]} 35. Nh2 {[%clk 0:01:15]}  Qg5 {[%clk 0:00:38]} 36. Nf1 {[%clk 0:01:10]}  h5 {[%clk 0:00:38]} 37. Nh2 {[%clk 0:01:06]}  Qh6 {[%clk 0:00:35]} 38. Nf3 {[%clk 0:01:06]}  Kh8 {[%clk 0:00:31]} 39. Nh4 {[%clk 0:01:06]}  Qg5 {[%clk 0:00:29]} 40. Rd1 {[%clk 0:01:06]}  Kg7 {[%clk 0:00:28]} 41. Bh3 {[%clk 0:01:02]}  Qh6 {[%clk 0:00:26]} 42. Bf5 {[%clk 0:01:01]}  Qg5 {[%clk 0:00:26]} 43. Bd7 {[%clk 0:00:57]}  Nxd7 {[%clk 0:00:22]} 44. Rxd7 {[%clk 0:00:58]}  Bc8 {[%clk 0:00:17]} 45. Rxf7+ {[%clk 0:00:57]}  Kxf7 {[%clk 0:00:16]} 46. Qxc6 {[%clk 0:00:57]}  Bg4 {[%clk 0:00:14]} 47. Rd6 {[%clk 0:00:52]}  Re7 {[%clk 0:00:10]} 48. Qxa6 {[%clk 0:00:50]}  Qc1+ {[%clk 0:00:08]} 49. Kg2 {[%clk 0:00:49]}  Qg5 {[%clk 0:00:07]} 50. Qxb5 {[%clk 0:00:49]}  Qc1 {[%clk 0:00:05]} 51. Qc4+ {[%clk 0:00:49]}  Kg7 {[%clk 0:00:04]} 52. Qd3 {[%clk 0:00:46]} 1-0


[Site "https://www.chess.com"]

[Event "Titled Tuesday Blitz August 09 Early 2022"]
[White "Matveeva, Olga"]
[Black "Eynullayev, Atilla"]
[WhiteFideId "24107018"]
[BlackFideId "13413570"]
[WhiteElo "2052"]
[BlackElo "1936"]
[Result "0-1"]
[Round "01"]
[TimeControl "180+1"]
[Date "2022.08.09"]
[WhiteClock "0:00:07"]
[BlackClock "0:00:17"]

1. d4 {[%clk 0:03:00]}  Nf6 {[%clk 0:02:59]} 2. c4 {[%clk 0:03:00]}  e6 {[%clk 0:02:59]} 3. g3 {[%clk 0:02:59]}  d5 {[%clk 0:02:58]} 4. Nf3 {[%clk 0:02:59]}  Be7 {[%clk 0:02:58]} 5. Bg2 {[%clk 0:02:59]}  O-O {[%clk 0:02:59]} 6. O-O {[%clk 0:02:59]}  dxc4 {[%clk 0:02:59]} 7. Qc2 {[%clk 0:03:00]}  a6 {[%clk 0:02:59]} 8. a4 {[%clk 0:03:00]}  Bd7 {[%clk 0:02:59]} 9. Qxc4 {[%clk 0:02:59]}  Bc6 {[%clk 0:02:59]} 10. Bf4 {[%clk 0:03:00]}  Bd6 {[%clk 0:02:59]} 11. Bg5 {[%clk 0:02:58]}  Bd5 {[%clk 0:02:53]} 12. Qc1 {[%clk 0:02:57]}  a5 {[%clk 0:02:44]} 13. Nc3 {[%clk 0:02:55]}  Bxf3 {[%clk 0:02:44]} 14. Bxf3 {[%clk 0:02:53]}  c6 {[%clk 0:02:44]} 15. Rd1 {[%clk 0:02:46]}  h6 {[%clk 0:02:43]} 16. Bxf6 {[%clk 0:02:32]}  Qxf6 {[%clk 0:02:43]} 17. Ne4 {[%clk 0:02:29]}  Qe7 {[%clk 0:02:43]} 18. Nxd6 {[%clk 0:02:28]}  Qxd6 {[%clk 0:02:44]} 19. Qc3 {[%clk 0:01:57]}  Nd7 {[%clk 0:02:27]} 20. Rac1 {[%clk 0:01:54]}  Rfd8 {[%clk 0:02:25]} 21. e3 {[%clk 0:01:51]}  Qe7 {[%clk 0:02:14]} 22. Qb3 {[%clk 0:01:46]}  Qb4 {[%clk 0:01:56]} 23. Qxb4 {[%clk 0:01:38]}  axb4 {[%clk 0:01:56]} 24. b3 {[%clk 0:01:38]}  Nb6 {[%clk 0:01:54]} 25. Rc5 {[%clk 0:01:33]}  f5 {[%clk 0:01:34]} 26. Rdc1 {[%clk 0:01:24]}  g5 {[%clk 0:01:27]} 27. Kf1 {[%clk 0:01:15]}  Kf7 {[%clk 0:01:23]} 28. h3 {[%clk 0:01:12]}  Kf6 {[%clk 0:01:23]} 29. Ke2 {[%clk 0:01:11]}  Rd6 {[%clk 0:01:07]} 30. R5c2 {[%clk 0:01:02]}  Ra5 {[%clk 0:00:54]} 31. Rc5 {[%clk 0:01:01]}  Ra8 {[%clk 0:00:53]} 32. R5c2 {[%clk 0:00:59]}  Ke7 {[%clk 0:00:49]} 33. Rc5 {[%clk 0:00:57]}  Kd7 {[%clk 0:00:47]} 34. R5c2 {[%clk 0:00:48]}  Kc7 {[%clk 0:00:46]} 35. Rc5 {[%clk 0:00:44]}  Rdd8 {[%clk 0:00:44]} 36. R5c2 {[%clk 0:00:43]}  Re8 {[%clk 0:00:44]} 37. Rc5 {[%clk 0:00:41]}  Re7 {[%clk 0:00:44]} 38. R5c2 {[%clk 0:00:37]}  e5 {[%clk 0:00:44]} 39. dxe5 {[%clk 0:00:37]}  Rxe5 {[%clk 0:00:45]} 40. Rd1 {[%clk 0:00:37]}  f4 {[%clk 0:00:24]} 41. gxf4 {[%clk 0:00:35]}  gxf4 {[%clk 0:00:25]} 42. Rd4 {[%clk 0:00:35]}  fxe3 {[%clk 0:00:24]} 43. fxe3 {[%clk 0:00:35]}  Rae8 {[%clk 0:00:25]} 44. Rd3 {[%clk 0:00:24]}  Nd7 {[%clk 0:00:18]} 45. Rc4 {[%clk 0:00:21]}  Nc5 {[%clk 0:00:18]} 46. Rdd4 {[%clk 0:00:14]}  Rxe3+ {[%clk 0:00:18]} 47. Kf2 {[%clk 0:00:14]}  Nd3+ {[%clk 0:00:17]} 48. Kg2 {[%clk 0:00:12]}  Ne1+ {[%clk 0:00:17]} 49. Kf2 {[%clk 0:00:11]}  Rxf3+ {[%clk 0:00:17]} 50. Kg1 {[%clk 0:00:08]}  Rg8+ {[%clk 0:00:18]} 51. Kh2 {[%clk 0:00:07]}  Rf2+ {[%clk 0:00:17]} 52. Kh1 {[%clk 0:00:07]}  Rf1+ {[%clk 0:00:17]} 0-1


[Site "https://www.chess.com"]

[Event "Titled Tuesday Blitz August 09 Early 2022"]
[White "Mikhalsky, Vladimir"]
[Black "Avinash, Ramesh"]
[WhiteFideId "14144352"]
[BlackFideId "45018340"]
[WhiteElo "2301"]
[BlackElo "1901"]
[Result "0-1"]
[Round "01"]
[TimeControl "180+1"]
[Date "2022.08.09"]
[WhiteClock "0:00:02"]
[BlackClock "0:01:30"]

1. e4 {[%clk 0:02:56]}  e6 {[%clk 0:02:58]} 2. d4 {[%clk 0:02:55]}  d5 {[%clk 0:02:58]} 3. Nc3 {[%clk 0:02:55]}  Nf6 {[%clk 0:02:57]} 4. e5 {[%clk 0:02:55]}  Nfd7 {[%clk 0:02:57]} 5. f4 {[%clk 0:02:56]}  c5 {[%clk 0:02:57]} 6. Nf3 {[%clk 0:02:56]}  Nc6 {[%clk 0:02:58]} 7. Be3 {[%clk 0:02:57]}  Be7 {[%clk 0:02:57]} 8. Qd2 {[%clk 0:02:57]}  O-O {[%clk 0:02:57]} 9. O-O-O {[%clk 0:02:54]}  c4 {[%clk 0:02:56]} 10. g4 {[%clk 0:02:51]}  b5 {[%clk 0:02:54]} 11. Ne2 {[%clk 0:02:38]}  b4 {[%clk 0:02:50]} 12. Qe1 {[%clk 0:02:37]}  a5 {[%clk 0:02:37]} 13. f5 {[%clk 0:02:32]}  a4 {[%clk 0:02:33]} 14. Nf4 {[%clk 0:02:24]}  b3 {[%clk 0:02:31]} 15. a3 {[%clk 0:01:54]}  Bxa3 {[%clk 0:02:11]} 16. bxa3 {[%clk 0:01:51]}  Qe7 {[%clk 0:02:12]} 17. Kd2 {[%clk 0:01:41]}  Qxa3 {[%clk 0:02:06]} 18. Ke2 {[%clk 0:01:39]}  bxc2 {[%clk 0:02:01]} 19. Ra1 {[%clk 0:01:30]}  Qb2 {[%clk 0:01:57]} 20. Qc1 {[%clk 0:01:30]}  a3 {[%clk 0:01:56]} 21. Bd2 {[%clk 0:01:17]}  Nxd4+ {[%clk 0:01:52]} 22. Nxd4 {[%clk 0:01:11]}  Qxd4 {[%clk 0:01:53]} 23. Bg2 {[%clk 0:00:57]}  Nxe5 {[%clk 0:01:52]} 24. Qxc2 {[%clk 0:00:51]}  Nxg4 {[%clk 0:01:51]} 25. Rhf1 {[%clk 0:00:21]}  Nxh2 {[%clk 0:01:44]} 26. Bc3 {[%clk 0:00:16]}  Qc5 {[%clk 0:01:37]} 27. Rh1 {[%clk 0:00:16]}  Ng4 {[%clk 0:01:36]} 28. Qd2 {[%clk 0:00:15]}  Qf2+ {[%clk 0:01:29]} 29. Kd1 {[%clk 0:00:15]}  Ne3+ {[%clk 0:01:29]} 30. Kc1 {[%clk 0:00:15]}  Qxf4 {[%clk 0:01:30]} 31. Bd4 {[%clk 0:00:12]}  Nxg2 {[%clk 0:01:28]} 32. Qxf4 {[%clk 0:00:09]}  Nxf4 {[%clk 0:01:29]} 33. Rg1 {[%clk 0:00:05]}  Ne2+ {[%clk 0:01:28]} 34. Kd2 {[%clk 0:00:05]}  Nxd4 {[%clk 0:01:29]} 35. f6 {[%clk 0:00:04]}  Nb3+ {[%clk 0:01:29]} 36. Kc3 {[%clk 0:00:04]}  Nxa1 {[%clk 0:01:30]} 37. Rxg7+ {[%clk 0:00:02]}  Kh8 {[%clk 0:01:30]} 0-1


[Site "https://www.chess.com"]